Cogmind - Beta 11.2 @@@ ROGUE MODE // 2022.12.29 @ 21:26:05 Player: ChromeKnight Result: Destroyed by Y-45 Defender with Heavy Assault Rifle Performance ------------- Evolutions (0) 0 Regions Visited (2) 400 Robots Destroyed (24) 120 Value Destroyed (393) 393 Prototype IDs (1) 20 Alien Tech Used (0) 0 Bonus (0) 0 TOTAL SCORE: 933 Bonus ------- None Cogmind --------- Core Integrity 0/250 Matter 300/300 Energy 100/100 System Corruption 8% Temperature Cool (27) Movement Core (400) Ox7 Location -10/Mines Parts ------- > --- POWER (1) -------- (None) > --- PROPULSION (2) --- (None) > --- UTILITY (2) ------ Large Storage Unit Signal Interpreter > --- WEAPON (2) ------- Flail Flail > --- INVENTORY (15) --- Improved Terrain Scanner Core Shielding Light Armor Plating Light Armor Plating Light Armor Plating Flail Flail Mining Claw Peak State ------------ > --- POWER ------------ Light Nuclear Core > --- PROPULSION ------- Aluminum Leg Aluminum Leg > --- UTILITY ---------- Large Storage Unit Signal Interpreter > --- WEAPON ----------- Flail Flail > --- INVENTORY -------- Light Nuclear Core Hover Unit Improved Terrain Scanner Flail Flail [Rating: 12] Favorites ----------- Power Light Nuclear Core Engine Ion Engine Power Core Light Nuclear Core Propulsion Aluminum Leg Leg Aluminum Leg Utility Signal Interpreter Device Improved Terrain Scanner Storage Small Storage Unit Processor Signal Interpreter Weapon Flail Energy Gun Small Laser Impact Weapon Flail Build | -11 -10 -10 ------- Run | Scr Mat Min Slots Evolved . | . . . Power . | . . . Propulsion . | . . . Utility . | . . . Weapon . | . . . Parts Attached 23 | 7 15 1 Power 5 | 1 4 . Engine 2 | 1 1 . Core 3 | . 3 . Reactor . | . . . Propulsion 7 | 2 4 1 Treads . | . . . Leg 7 | 2 4 1 Wheel . | . . . Hover . | . . . Flight . | . . . Utility 5 | 2 3 . Device 1 | 1 . . Storage 3 | 1 2 . Processor 1 | . 1 . Hackware . | . . . Protection . | . . . Artifact . | . . . Weapon 6 | 2 4 . Energy Gun 4 | 2 2 . Energy Cannon . | . . . Ballistic Gun . | . . . Ballistic Cannon . | . . . Launcher . | . . . Special Weapon . | . . . Impact Weapon 2 | . 2 . Slashing Weapon . | . . . Piercing Weapon . | . . . Special Melee Weapon . | . . . Unidentified Prototypes 1 | . 1 . Corrupted Parts 2 | 1 1 . System Corruption 7 | 2 5 . Parts Lost 4 | . . 4 Power 1 | . . 1 Propulsion 3 | . . 3 Utility . | . . . Weapon . | . . . Highest Loss Streak 4 | . . 4 To Critical Strikes . | . . . Average Slot Usage (%) 95 | . 96 85 Engine 6 | . 6 . Core 7 | . 7 8 Leg 27 | . 28 19 Storage 14 | . 14 14 Processor 12 | . 12 14 Energy Gun 13 | . 14 . Impact Weapon 12 | . 11 28 Naked Turns . | . . . Heaviest Build 29 | 14 29 29 Greatest Support 20 | 20 20 20 Greatest Overweight (x) 2 | . 1 2 Average Overweight (x) . | . . 1 Largest Inventory Capacity 15 | 8 15 15 Average Capacity 11 | 7 11 15 Most Carried 10 | 1 10 9 Average Carried 5 | . 5 8 Final Capacity 15 | 8 15 15 Final Carried 9 | . 9 8 Class Distribution -------------------- 91% | Mutant 8% | Scavenger-Mutant Dominant Class ---------------- Mutant | -10/Materials Mutant | -10/Mines Resources | -11 -10 -10 ----------- Run | Scr Mat Min Matter Collected 454 | 260 194 . Remotely . | . . . Salvage Created 838 | 120 718 . Parts 45 | 10 35 . Haulers Intercepted 2 | . 2 . Recyclers Shooed 1 | . 1 . Parts Field Recycled . | . . . Retrieved Matter . | . . . Parts Self-Destructed . | . . . Prevented . | . . . Kills | -11 -10 -10 ------- Run | Scr Mat Min Combat Hostiles Destroyed 10 | . 10 . Melee 4 | . 4 . Guns 4 | . 4 . AOE 1 | . 1 . Classes Destroyed 9 | 2 7 . Worker 1 | . 1 . Builder 2 | . 2 . Tunneler 3 | 2 1 . Hauler 2 | . 2 . Recycler 3 | 1 2 . Mechanic 1 | . 1 . Watcher 2 | . 2 . Swarmer 3 | . 3 . Grunt 7 | . 7 . Best Kill Streak 3 | 3 3 . Combat Bots Only 3 | . 3 . Max Kills in Single Turn 1 | 1 1 . Gunslinging . | . . . Exploded 1 | . 1 . Melee 1 | . 1 . Uniques/NPCs Destroyed . | . . . Combat | -11 -10 -10 -------- Run | Scr Mat Min Damage Taken 1006 | . 562 444 Core 255 | . 109 146 Absorbed by Shields . | . . . Core Remaining (%) 100 | 100 . . Volleys Fired 40 | 7 33 . Largest 2 | 2 2 . Hottest 105 | 80 105 . Shots Fired 78 | 14 64 . Gun 78 | 14 64 . Cannon . | . . . Launcher . | . . . Special . | . . . Kinetic . | . . . Thermal 58 | 7 51 . Explosive . | . . . Electromagnetic 20 | 7 13 . Robot Hit Streak 11 | 5 11 . Robot Miss Streak 3 | 1 3 . Penetration Max . | . . . Secondary Targets 1 | . 1 . Max Gunslinging Chain 1 | . 1 . Shots Hit Robots 77 | 9 58 10 Core Hits 24 | 3 21 . Critical Kills . | . . . Critical Parts Destroyed 2 | . 1 1 Critical Strikes 2 | . 1 1 Smash 2 | . 1 1 Melee Attacks 39 | . 29 10 Impact 39 | . 29 10 Slashing . | . . . Piercing . | . . . Sneak Attacks 7 | . 7 . Combat Hostiles . | . . . Follow-up Attacks 5 | . 3 2 Damage Inflicted 1934 | 108 1577 249 Guns 556 | 108 448 . Cannons . | . . . Explosions 63 | . 63 . Melee 1312 | . 1063 249 Ramming 3 | . 3 . Kinetic . | . . . Thermal 417 | 42 375 . Explosive . | . . . Electromagnetic 202 | 66 136 . Impact 1312 | . 1063 249 Slashing . | . . . Piercing . | . . . Highest Corruption 8 | 2 8 8 Average Corruption 4 | 2 4 8 Corruption Purged . | . . . Corruption Blocked . | . . . Effects 15 | . 13 2 Message Errors 5 | . 5 . Matter Fused 5 | . 5 . Heat Flow Errors 1 | . 1 . Energy Discharges 1 | . 1 . Data Loss (minor) 2 | . 1 1 Data Loss (major) 1 | . . 1 Overload Shots . | . . . Overflow Damage 273 | . 239 34 Projectiles . | . . . Explosions . | . . . Melee 273 | . 239 34 Knockbacks 1 | . 1 . Impact 1 | . 1 . Kinetic . | . . . Secondary . | . . . Self-Inflicted Damage 36 | . 36 . Shots 1 | . 1 . Rammed . | . . . Targets Rammed 1 | . 1 . Kicked 1 | . 1 . Crushed . | . . . Highest Temperature 233 | 126 233 9 Average Temperature 83 | 64 88 5 Received Heat Transfer 483 | . 294 189 Siege Activations . | . . . Robots Corrupted . | . . . Combat Hostiles . | . . . Parts Fried 12 | . 12 . Impact Corruptions 14 | . 12 2 Robots Melted . | . . . Combat Hostiles . | . . . Parts Melted 2 | . 2 . Heat Transferred 925 | 100 825 . Parts Sabotaged . | . . . Parts Stolen . | . . . Parts Stripped . | . . . Power Chain Reactions 1 | . 1 . Missiles Intercepted . | . . . Alert | -11 -10 -10 ------- Run | Scr Mat Min Peak Influence 219 | 15 219 46 Initial 31 | . 9 31 Average 90 | 3 102 31 Maximum Alert Level 1 | . 1 . Low Security (%) 86 | 100 84 100 Level 1 13 | . 15 . Level 2 . | . . . Level 3 . | . . . Level 4 . | . . . Level 5 . | . . . High Security . | . . . Max Security . | . . . Squads Dispatched 1 | . 1 . Investigation 1 | . 1 . Extermination . | . . . Reinforcement . | . . . Assault . | . . . Garrison . | . . . Intercept . | . . . Searches Triggered . | . . . Construction Impeded . | . . . Haulers Reinforced . | . . . Active Scanning Responses . | . . . Cargo Convoy Interrupts . | . . . Stealth | -11 -10 -10 --------- Run | Scr Mat Min Distress Signals 1 | . 1 . Communications Jammed . | . . . Distress Signals . | . . . Times Spotted 17 | . 15 2 Peak Tracking Total 4 | . 4 2 Tactical Retreats . | . . . Traps | -11 -10 -10 ------- Run | Scr Mat Min Traps Triggered 2 | . 2 . Indirectly . | . . . Trap Hack Attempts . | . . . Triggered . | . . . Disarmed . | . . . Reprogrammed . | . . . Reused . | . . . Traps Extracted . | . . . Installed . | . . . Triggered . | . . . Machines | -11 -10 -10 ---------- Run | Scr Mat Min Machines Disabled . | . . . Max in Single Turn . | . . . Machines Sabotaged . | . . . Garrisons Compromised . | . . . Overloaded Fab Kills . | . . . Hacking | -11 -10 -10 --------- Run | Scr Mat Min Machines Accessed . | . . . Terminals . | . . . Fabricators . | . . . Repair Stations . | . . . Recycling Units . | . . . Scanalyzers . | . . . Garrison Access . | . . . Total Hacks . | . . . Successful . | . . . Failed . | . . . Catastrophic . | . . . Database Lockouts . | . . . Manual . | . . . Terminals . | . . . Fabricators . | . . . Repair Stations . | . . . Recycling Units . | . . . Scanalyzers . | . . . Garrison Access . | . . . Terminal Hacks . | . . . Fabricator Hacks . | . . . Repair Station Hacks . | . . . Recycling Unit Hacks . | . . . Scanalyzer . | . . . Garrison Access Hacks . | . . . Unauthorized Hacks . | . . . Terminals . | . . . Fabricators . | . . . Repair Stations . | . . . Recycling Units . | . . . Scanalyzers . | . . . Garrison Access . | . . . Data Cores Recovered . | . . . Used . | . . . Hacking Detections . | . . . Full Trace Events . | . . . Feedback Events . | . . . Feedback Blocked . | . . . Robot Schematics Acquired . | . . . Robots Built . | . . . Authchips . | . . . Time . | . . . Total Robot Build Rating . | . . . Part Schematics Acquired . | . . . Parts Built . | . . . Authchips . | . . . Time . | . . . Total Part Build Rating . | . . . Parts Repaired . | . . . Time . | . . . Parts Recycled . | . . . Recycled Matter . | . . . Retrieved Matter . | . . . Retrieved Components . | . . . Parts Scanalyzed . | . . . Part Schematics Acquired . | . . . Parts Damaged . | . . . Bothacking | -11 -10 -10 ------------ Run | Scr Mat Min Used RIF Installer . | . . . Robots Hacked . | . . . Non-combat . | . . . Combat . | . . . Robot Hacks Applied . | . . . Relay Couplers Released . | . . . Fabnet Peak Effective % . | . . . Robots Rewired . | . . . Allies Hacked . | . . . Hacks Repelled . | . . . Allies | -11 -10 -10 -------- Run | Scr Mat Min Total Allies . | . . . Largest Group . | . . . Highest-Rated Group . | . . . Highest-Rated Ally . | . . . Total Orders . | . . . Ally Attacks . | . . . Total Damage . | . . . Kills . | . . . Allies Corrupted . | . . . Allies Melted . | . . . Intel | -11 -10 -10 ------- Run | Scr Mat Min Robot Analysis Total . | . . . Derelict Logs Recovered . | . . . Drone Launches . | . . . Drone Recoveries . | . . . Exploration | -11 -10 -10 ------------- Run | Scr Mat Min Turns Passed 1080 | 94 942 44 Spaces Moved 507 | 58 440 9 Core 10 | 10 . . Treads . | . . . Legs 497 | 48 440 9 Wheels . | . . . Hover . | . . . Flight . | . . . Fastest Speed 50 | 50 120 190 Average Speed 148 | 107 152 213 Slowest Speed 260 | 120 190 260 Overloaded Moves . | . . . Propulsion Burnouts . | . . . Robots Hopped . | . . . Cave-ins Triggered . | . . . Exploration Rate (%) 22 | 3 59 5 Regions Visited 2 Branch Regions 1 Pre-discovered Areas . | . . . Known Exits Taken 1 | . 1 . Unknown Exits Taken 1 | 1 . . Scrap Searched . | . . . Spaces Dug . | . . . Terrain Destroyed 4 | . 4 . Melee . | . . . Projectile . | . . . AOE 4 | . 4 . Terrain Rammed . | . . . Walls Destroyed . | . . . Machines Disabled . | . . . Actions | -11 -10 -10 --------- Run | Scr Mat Min Total 710 | 72 616 22 Wait 68 | . 64 4 Move 505 | 57 439 9 Hop . | . . . Pick Up 21 | 1 20 . Fast Attach 12 | 6 6 . Attach 4 | 1 2 1 Detach 1 | . 1 . Swap 7 | . 7 . Drop 19 | . 19 . Fire 40 | 7 33 . Melee 32 | . 24 8 Ram . | . . . Kick 1 | . 1 . Crush . | . . . Escape Stasis . | . . . Rewire . | . . . Trap . | . . . Miscellaneous . | . . . Route ------- -11/Scrapyard -10/Materials -10/Mines History --------- Turn | Location | Event 4 | -11/Scrapyard | Discovered new exit (range 15) 95 | -11/Scrapyard | Entered Materials 320 | -10/Materials | Build established: Mutant 987 | -10/Materials | Discovered new exit (range 8) 1035 | -10/Materials | Identified exit to Mines 1037 | -10/Materials | Entered Mines 1059 | -10/Mines | Core integrity fell below 50% 1070 | -10/Mines | Core integrity fell below 20% 1081 | -10/Mines | Destroyed by Y-45 Defender with Heavy Assault Rifle Last Messages --------------- 01035_ EXIT=IDENTIFIED: MINES LOCATION=MINES GOAL=ESCAPE Something is scanning the area. 01050_ System corrupted: Substantial component data lost. 01052_ Aluminum Leg destroyed. 01052_ Critical hit (Burn: +37). 01063_ Flail follow-up attack on Y-45 Defender. 01066_ Aluminum Leg destroyed. 01066_ Lgt. Nuclear Core destroyed. 01068_ System corrupted: Component data lost. 01069_ Flail follow-up attack on Y-45 Defender. 01069_ Y-45 Defender suffers critical hit (Smash). 01069_ Destroyed Hvy. Assault Rifle. 01069_ Y-45 Defender system corrupted by crushing effect. 01075_ Destroyed Heat Sink. 01075_ Y-45 Defender system corrupted by crushing effect. 01079_ Y-45 Defender misfires. 01081_ Aluminum Leg destroyed. 01081_ Critical hit (Burn: +37). Map ----- +----------------------------------------------------+ | | | | | | | | | | | | | | | | | | | | | | | | | | | | | | | | | | | | | | | | | ????????????????????????#####?????? | | ??????????????????????##" "##????? | | ??????????????????????#!! ![#????? | | ??????????????????????#/! Y!#????? | | ???????????????????????# #?????? | | ?????????????????????####@Y######?? | | ?????????????????????# #?? | | ?????????????????????# #?? | | ?????????????????????# #?? | | ?????????????????????# #?? | | ?????????????????????# #?? | | ?????????????????????# #?? | | ???????????????????? #?? | | ?????????????????? #?? | | ???????????????? #### #?? | | ???????????????# ????############?? | | ??????????????????????????????????? | | ??????????????????????????????????? | | ??????????????????????????????????? | | ??????????????????????????????????? | | ??????????????????????????????????? | | ??????????????????????????????????? | | ??????????????????????????????????? | | ??????????????????????????????????? | | ??????????????????????????????????? | | ??????????????????????????????????? | | ??????????????????????????????????? | | ??????????????????????????????????? | | ??????????????????????????????????? | | ??????????????????????????????????? | +----------------------------------------------------+ Best States ------------- Heat Dissipation 25 Energy Generation 14 Energy Capacity 280 Matter Stores 300 Matter Capacity 300 Sight Range 16 Terrain Scan Density 10 Evasion (%) 55 Item Schematics ----------------- None Robot Schematics ------------------ None Fabricated ------------ Nothing Alien Tech Used ----------------- None Achievements -------------- None Challenges ------------ None Game ------ Seed MassDamperHumpback Manual? 0 Play Time 00:07:52 Cumulative 377.1 hours Start 2022.12.29 @ 21:17:51 End 2022.12.29 @ 21:26:05 Sessions 1 Manual Loads 0 Difficulty Rogue Special Mode None Game No. 675 Rogue 520 Adventurer 148 Explorer 7 Win Type - Total 14 Types 12/0/1/1/0/0/0/0/0 Lore% 78 Gallery% 88 Achievement% 71 Wizard Run 0 Options --------- ASCII 0 Keyboard 0 Movement Numpad Keybinds 0 Fullscreen 2 Font 18/SmallcapsGlow Map View 76x50 Tactical HUD 1 Map Filters NONE Filters NONE Steam 1 RUN: 96e8e637-5fad-43dd-8ea8-553eb5d3aad0